fUST/lending_fUST_20260408
["ID","MTS","AMOUNT","RATE_DAILY","PERIOD"]
[419988726,1775587844105,-991.16,0.00027397,2]
[419988728,1775587844116,-972.81,0.00027397,2]
[419988730,1775587844127,-500.0,0.00027397,2]
[419988732,1775587844137,-500.0,0.00027397,2]
[419988734,1775587844148,-500.0,0.00027397,2]
[419988735,1775587844159,-500.0,0.00027397,2]
[419988737,1775587844169,-744.48,0.00027397,2]
[419988739,1775587844179,-500.0,0.00027397,2]
[419988741,1775587844189,-1132.79,0.00027397,2]
[419988743,1775587844199,-500.0,0.00027397,2]
[419988745,1775587844209,-3898.68,0.00027397,2]
[419988747,1775587844219,-1060.8,0.00027397,2]
[419988749,1775587844230,-500.0,0.00027397,2]
[419988751,1775587844239,-500.0,0.00027397,2]
[419988753,1775587844249,-500.0,0.00027397,2]
[419988755,1775587844259,-500.0,0.00027397,2]
[419988757,1775587844270,-500.0,0.00027397,2]
[419988759,1775587844280,-500.0,0.00027397,2]
[419988761,1775587844290,-629.02599545,0.00027397,2]
[419988764,1775587844301,-649.95,0.00027397,2]
[419988766,1775587844311,-1294.18,0.00027397,2]
[419988768,1775587844321,-500.0,0.00027397,2]
[419988770,1775587844331,-500.0,0.00027397,2]
[419988772,1775587844341,-500.0,0.00027397,2]
[419988774,1775587844351,-500.0,0.00027397,2]
[419988776,1775587844361,-500.0,0.00027397,2]
[419988777,1775587844371,-1101.82,0.00027397,2]
[419988779,1775587844380,-507.02664776,0.00027397,2]
[419988781,1775587844389,-540.35447924,0.00027397,2]
[419988783,1775587844399,-500.0,0.00027397,2]
[419988785,1775587844409,-500.0,0.00027397,2]
[419988787,1775587844419,-500.0,0.00027397,2]
[419988789,1775587844429,-500.0,0.00027397,2]
[419988791,1775587844439,-834.63,0.00027397,2]
[419988793,1775587844449,-500.0,0.00027397,2]
[419988795,1775587844459,-664.75,0.00027397,2]
[419988797,1775587844469,-500.0,0.00027397,2]
[419988799,1775587844479,-500.0,0.00027397,2]
[419988801,1775587844490,-1116.7,0.00027397,2]
[419988803,1775587844499,-537.73,0.00027397,2]
[419988805,1775587844510,-500.0,0.00027397,2]
[419988807,1775587844520,-500.0,0.00027397,2]
[419988809,1775587844530,-1716.87,0.00027397,2]
[419988811,1775587844540,-500.0,0.00027397,2]
[419988813,1775587844550,-500.0,0.00027397,2]
[419988815,1775587844560,-503.75,0.00027397,2]
[419988817,1775587844569,-500.0,0.00027397,2]
[419988819,1775587844579,-889.09,0.00027397,2]
[419988821,1775587844590,-500.0,0.00027397,2]
[419988823,1775587844600,-500.0,0.00027397,2]
[419988825,1775587844610,-500.0,0.00027397,2]
[419988827,1775587844620,-1419.09,0.00027397,2]
[419988829,1775587844630,-500.0,0.00027397,2]
[419988831,1775587844641,-500.0,0.00027397,2]
[419988833,1775587844650,-500.0,0.00027397,2]
[419988835,1775587844660,-500.0,0.00027397,2]
[419988837,1775587844670,-500.0,0.00027397,2]
[419988839,1775587844679,-1089.43,0.00027397,2]
[419988841,1775587844689,-1133.26,0.00027397,2]
[419988843,1775587844699,-665.46,0.00027397,2]
[419988845,1775587844709,-726.87,0.00027397,2]
[419988847,1775587844718,-500.0,0.00027397,2]
[419988849,1775587844728,-500.0,0.00027397,2]
[419988851,1775587844738,-500.0,0.00027397,2]
[419988853,1775587844748,-586.88,0.00027397,2]
[419988855,1775587844757,-250.5341719,0.00027397,2]
[419988857,1775587844766,-589.4669625,0.00027397,2]
[419988859,1775587844775,-500.0,0.00027397,2]
[419988866,1775587844838,-500.0,0.00027397,2]
[419988868,1775587844848,-1790.62,0.00027397,2]
[419988870,1775587844858,-500.0,0.00027397,2]
[419988873,1775587844868,-639.74,0.00027397,2]
[419988875,1775587844878,-714.83,0.00027397,2]
[419988877,1775587844887,-859.99,0.00027397,2]
[419988879,1775587844897,-500.0,0.00027397,2]
[419988880,1775587844906,-500.0,0.00027397,2]
[419988882,1775587844916,-500.0,0.00027397,2]
[419988885,1775587844926,-500.0,0.00027397,2]
[419988886,1775587844935,-198.21417809,0.00027397,2]
[419988888,1775587844945,-500.0,0.00027397,2]
[419988890,1775587844954,-502.91328086,0.00027397,2]
[419988892,1775587844964,-1445.53,0.00027397,2]
[419988894,1775587844973,-1217.43,0.00027397,2]
[419988896,1775587844983,-575.79,0.00027397,2]
[419988898,1775587844993,-1709.69,0.00027397,2]
[419988900,1775587845003,-500.0,0.00027397,2]
[419988902,1775587845013,-500.0,0.00027397,2]
[419988904,1775587845023,-500.0,0.00027397,2]
[419988906,1775587845032,-500.0,0.00027397,2]
[419988908,1775587845041,-1522.2,0.00027397,2]
[419988910,1775587845051,-1471.85,0.00027397,2]
[419988912,1775587845061,-500.0,0.00027397,2]
[419988914,1775587845070,-500.0,0.00027397,2]
[419988916,1775587845080,-500.0,0.00027397,2]
[419988918,1775587845089,-1995.48,0.00027397,2]
[419988920,1775587845099,-643.07,0.00027397,2]
[419988922,1775587845109,-500.0,0.00027397,2]
[419988924,1775587845119,-500.0,0.00027397,2]
[419988926,1775587845129,-1968.19,0.00027397,2]
[419988929,1775587845140,-500.0,0.00027397,2]
[419988930,1775587845149,-500.0,0.00027397,2]
[419988932,1775587845159,-3842.88,0.00027397,2]
[419988934,1775587845168,-519.00791923,0.00027397,2]
[419988936,1775587845178,-568.95,0.00027397,2]
[419988938,1775587845188,-500.0,0.00027397,2]
[419988940,1775587845198,-500.0,0.00027397,2]
[419988942,1775587845208,-2257.42,0.00027397,2]
[419988944,1775587845218,-500.0,0.00027397,2]
[419988946,1775587845228,-1855.44,0.00027397,2]
[419988948,1775587845239,-688.37,0.00027397,2]
[419988950,1775587845249,-500.0,0.00027397,2]
[419988952,1775587845260,-3819.4,0.00027397,2]
[419988955,1775587845270,-500.0,0.00027397,2]
[419988957,1775587845280,-500.0,0.00027397,2]
[419988959,1775587845290,-591.68,0.00027397,2]
[419988961,1775587845300,-500.0,0.00027397,2]
[419988962,1775587845310,-1583.84,0.00027397,2]
[419988964,1775587845320,-500.0,0.00027397,2]
[419988966,1775587845330,-787.1,0.00027397,2]
[419988968,1775587845341,-500.0,0.00027397,2]
[419988970,1775587845351,-591.35,0.00027397,2]
[419988972,1775587845361,-1622.83,0.00027397,2]
[419988974,1775587845371,-501.20278887,0.00027397,2]
[419988976,1775587845381,-500.0,0.00027397,2]
[419988978,1775587845391,-500.0,0.00027397,2]
[419988980,1775587845401,-3529.74,0.00027397,2]
[419988982,1775587845411,-500.0,0.00027397,2]
[419988984,1775587845422,-562.31,0.00027397,2]
[419988986,1775587845431,-584.03296807,0.00027397,2]
[419988988,1775587845441,-500.0,0.00027397,2]
[419988990,1775587845450,-586.56,0.00027397,2]
[419988992,1775587845459,-296.71882578,0.00027397,2]
[419988994,1775587845469,-500.0,0.00027397,2]
[419988996,1775587845479,-653.44,0.00027397,2]
[419988998,1775587845489,-500.0,0.00027397,2]
[419989000,1775587845499,-500.0,0.00027397,2]
[419989002,1775587845510,-500.0,0.00027397,2]
[419989004,1775587845519,-500.0,0.00027397,2]
[419989006,1775587845530,-500.0,0.00027397,2]
[419989008,1775587845541,-1521.52,0.00027397,2]
[419989009,1775587845550,-500.0,0.00027397,2]
[419989011,1775587845560,-500.0,0.00027397,2]
[419989013,1775587845570,-151.0,0.00027397,2]
[419989015,1775587845579,-153.534066,0.00027397,2]
[419989017,1775587845589,-2096.87,0.00027397,2]
[419989019,1775587845599,-5039.88,0.00027397,2]
[419989021,1775587845611,-500.0,0.00027397,2]
[419989023,1775587845621,-500.0,0.00027397,2]
[419989026,1775587845633,-500.0,0.00027397,2]
[419989027,1775587845643,-500.0,0.00027397,2]
[419989029,1775587845653,-500.0,0.00027397,2]
[419989031,1775587845663,-500.0,0.00027397,2]
[419989033,1775587845673,-500.0,0.00027397,2]
[419989035,1775587845682,-500.0,0.00027397,2]
[419989037,1775587845692,-660.85,0.00027397,2]
[419989039,1775587845702,-500.0,0.00027397,2]
[419989041,1775587845712,-500.0,0.00027397,2]
[419989043,1775587845722,-546.46313678,0.00027397,2]
[419989045,1775587845733,-1526.88,0.00027397,2]
[419989047,1775587845743,-500.0,0.00027397,2]
[419989049,1775587845753,-514.27597829,0.00027397,2]
[419989051,1775587845763,-1680.38,0.00027397,2]
[419989053,1775587845772,-516.56548854,0.00027397,2]
[419989055,1775587845782,-500.0,0.00027397,2]
[419989057,1775587845793,-1171.46,0.00027397,2]
[419989059,1775587845803,-1405.32,0.00027397,2]
[419989061,1775587845813,-500.0,0.00027397,2]
[419989063,1775587845823,-500.0,0.00027397,2]
[419989067,1775587845834,-1187.82,0.00027397,2]
[419989070,1775587845844,-1124.11,0.00027397,2]
[419989073,1775587845855,-500.0,0.00027397,2]
[419989076,1775587845864,-500.0,0.00027397,2]
[419989079,1775587845874,-2828.69,0.00027397,2]
[419989081,1775587845883,-500.0,0.00027397,2]
[419989083,1775587845892,-670.78,0.00027397,2]
[419989085,1775587845902,-500.0,0.00027397,2]
[419989087,1775587845911,-500.0,0.00027397,2]
[419989090,1775587845921,-500.0,0.00027397,2]
[419989092,1775587845931,-500.0,0.00027397,2]
[419989094,1775587845941,-500.0,0.00027397,2]
[419989095,1775587845951,-500.0,0.00027397,2]
[419989098,1775587845962,-500.0,0.00027397,2]
[419989100,1775587845972,-911.84,0.00027397,2]
[419989102,1775587845982,-3993.67,0.00027397,2]
[419989104,1775587845991,-436.76120576,0.00027397,2]
[419989106,1775587846001,-500.0,0.00027397,2]
[419989107,1775587846011,-522.58633317,0.00027397,2]
[419989109,1775587846020,-1085.07,0.00027397,2]
[419989111,1775587846031,-500.0,0.00027397,2]
[419989113,1775587846042,-500.0,0.00027397,2]
[419989115,1775587846051,-858.27,0.00027397,2]
[419989117,1775587846060,-500.0,0.00027397,2]
[419989119,1775587846070,-500.0,0.00027397,2]
[419989121,1775587846079,-884.28,0.00027397,2]
[419989123,1775587846088,-500.0,0.00027397,2]
[419989125,1775587846097,-500.0,0.00027397,2]
[419989127,1775587846106,-500.0,0.00027397,2]
[419989129,1775587846115,-500.0,0.00027397,2]
[419989131,1775587846125,-500.0,0.00027397,2]
[419989133,1775587846134,-500.0,0.00027397,2]
[419989135,1775587846144,-500.0,0.00027397,2]
[419989137,1775587846153,-3333.14,0.00027397,2]
[419989139,1775587846162,-586.37356862,0.00027397,2]
[419989141,1775587846172,-500.0,0.00027397,2]
[419989142,1775587846182,-552.63,0.00027397,2]
[419989145,1775587846192,-250.2587284,0.00027397,2]
[419989147,1775587846202,-500.0,0.00027397,2]
[419989149,1775587846211,-500.0,0.00027397,2]
[419989150,1775587846221,-1832.64,0.00027397,2]
[419989152,1775587846230,-500.0,0.00027397,2]
[419989154,1775587846240,-1884.71,0.00027397,2]
[419989156,1775587846249,-500.0,0.00027397,2]
[419989158,1775587846259,-500.0,0.00027397,2]
[419989160,1775587846269,-500.0,0.00027397,2]
[419989162,1775587846279,-288.88426769,0.00027397,2]
[419989164,1775587846289,-500.0,0.00027397,2]
[419989166,1775587846298,-500.0,0.00027397,2]
[419989168,1775587846308,-500.0,0.00027397,2]
[419989170,1775587846317,-1673.32,0.00027397,2]
[419989172,1775587846327,-500.0,0.00027397,2]
[419989174,1775587846338,-1274.25,0.00027397,2]
[419989176,1775587846348,-882.17,0.00027397,2]
[419989178,1775587846357,-500.0,0.00027397,2]
[419989180,1775587846367,-500.0,0.00027397,2]
[419989182,1775587846378,-926.69,0.00027397,2]
[419989184,1775587846387,-979.18,0.00027397,2]
[419989186,1775587846397,-1651.95,0.00027397,2]
[419989188,1775587846408,-2356.66,0.00027397,2]
[419989190,1775587846418,-500.0,0.00027397,2]
[419989192,1775587846427,-500.0,0.00027397,2]
[419989194,1775587846437,-500.0,0.00027397,2]
[419989196,1775587846447,-500.0,0.00027397,2]
[419989198,1775587846457,-535.73,0.00027397,2]
[419989200,1775587846467,-514.78,0.00027397,2]
[419989202,1775587846477,-500.0,0.00027397,2]
[419989204,1775587846487,-1047.74,0.00027397,2]
[419989206,1775587846497,-500.0,0.00027397,2]
[419989208,1775587846507,-500.0,0.00027397,2]
[419989210,1775587846517,-831.42,0.00027397,2]
[419989212,1775587846527,-505.91,0.00027397,2]
[419989214,1775587846537,-500.0,0.00027397,2]
[419989216,1775587846550,-1199.38,0.00027397,2]
[419989218,1775587846560,-500.0,0.00027397,2]
[419989220,1775587846570,-390.08631762,0.00027397,2]
[419989222,1775587846580,-500.0,0.00027397,2]
[419989224,1775587846590,-1488.74,0.00027397,2]
[419989227,1775587846601,-500.0,0.00027397,2]
[419989229,1775587846611,-522.66018922,0.00027397,2]
[419989231,1775587846621,-500.0,0.00027397,2]
[419989233,1775587846632,-2252.86,0.00027397,2]
[419989235,1775587846642,-574.17,0.00027397,2]
[419989237,1775587846652,-500.0,0.00027397,2]
[419989239,1775587846662,-1077.64,0.00027397,2]
[419989241,1775587846672,-587.87402456,0.00027397,2]
[419989243,1775587846682,-500.0,0.00027397,2]
[419989245,1775587846692,-500.0,0.00027397,2]
[419989247,1775587846703,-500.0,0.00027397,2]
[419989249,1775587846713,-500.0,0.00027397,2]
[419989251,1775587846724,-500.0,0.00027397,2]
[419989253,1775587846734,-2013.59,0.00027397,2]
[419989255,1775587846744,-500.0,0.00027397,2]
[419989257,1775587846754,-500.0,0.00027397,2]
[419989259,1775587846764,-500.0,0.00027397,2]
[419989261,1775587846773,-500.0,0.00027397,2]
[419989263,1775587846782,-500.0,0.00027397,2]
[419989265,1775587846792,-500.0,0.00027397,2]
[419989266,1775587846801,-500.0,0.00027397,2]
[419989268,1775587846811,-500.0,0.00027397,2]
[419989270,1775587846820,-500.0,0.00027397,2]
[419989272,1775587846830,-5266.43,0.00027397,2]
[419989274,1775587846839,-310.67938256,0.00027397,2]
[419989276,1775587846849,-500.0,0.00027397,2]
[419989278,1775587846858,-500.0,0.00027397,2]
[419989280,1775587846868,-500.0,0.00027397,2]
[419989282,1775587846877,-500.0,0.00027397,2]
[419989284,1775587846887,-500.0,0.00027397,2]
[419989286,1775587846897,-500.0,0.00027397,2]
[419989288,1775587846907,-500.0,0.00027397,2]
[419989290,1775587846916,-857.32,0.00027397,2]
[419989292,1775587846926,-1374.69,0.00027397,2]
[419989294,1775587846936,-500.0,0.00027397,2]
[419989296,1775587846945,-500.0,0.00027397,2]
[419989298,1775587846955,-500.0,0.00027397,2]
[419989300,1775587846965,-3421.96,0.00027397,2]
[419989302,1775587846974,-500.0,0.00027397,2]
[419989304,1775587846984,-729.33,0.00027397,2]
[419989306,1775587846993,-579.49,0.00027397,2]
[419989308,1775587847003,-500.0,0.00027397,2]
[419989310,1775587847013,-500.0,0.00027397,2]
[419989312,1775587847022,-536.42,0.00027397,2]
[419989314,1775587847032,-552.14,0.00027397,2]
[419989316,1775587847042,-500.0,0.00027397,2]
[419989318,1775587847053,-500.0,0.00027397,2]
[419989320,1775587847064,-500.0,0.00027397,2]
[419989322,1775587847074,-500.0,0.00027397,2]
[419989324,1775587847083,-500.0,0.00027397,2]
[419989326,1775587847093,-500.0,0.00027397,2]
[419989328,1775587847103,-1952.08,0.00027397,2]
[419989330,1775587847112,-500.0,0.00027397,2]
[419989332,1775587847121,-500.0,0.00027397,2]
[419989334,1775587847131,-500.0,0.00027397,2]
[419989336,1775587847141,-3433.35,0.00027397,2]
[419989338,1775587847151,-695.41,0.00027397,2]
[419989340,1775587847162,-199.38661593,0.00027397,2]
[419989342,1775587847172,-1836.31,0.00027397,2]
[419989344,1775587847182,-1903.49,0.00027397,2]
[419989346,1775587847193,-500.0,0.00027397,2]
[419989348,1775587847204,-500.0,0.00027397,2]
[419989350,1775587847214,-500.0,0.00027397,2]
[419989352,1775587847224,-500.0,0.00027397,2]
[419989354,1775587847234,-684.13,0.00027397,2]
[419989356,1775587847243,-500.0,0.00027397,2]
[419989358,1775587847253,-1059.97,0.00027397,2]
[419989360,1775587847264,-588.93347218,0.00027397,2]
[419989362,1775587847273,-500.0,0.00027397,2]
[419989364,1775587847283,-882.46,0.00027397,2]
[419989366,1775587847292,-500.0,0.00027397,2]
[419989368,1775587847301,-687.05,0.00027397,2]
[419989370,1775587847310,-1454.69,0.00027397,2]
[419989372,1775587847320,-500.0,0.00027397,2]
[419989373,1775587847330,-500.0,0.00027397,2]
[419989375,1775587847339,-605.72,0.00027397,2]
[419989377,1775587847349,-783.06,0.00027397,2]
[419989379,1775587847359,-538.61,0.00027397,2]
[419989381,1775587847370,-500.0,0.00027397,2]
[419989383,1775587847379,-737.53,0.00027397,2]
[419989385,1775587847389,-500.0,0.00027397,2]
[419989387,1775587847399,-500.0,0.00027397,2]
[419989389,1775587847408,-500.0,0.00027397,2]
[419989391,1775587847418,-500.0,0.00027397,2]
[419989393,1775587847427,-1786.57,0.00027397,2]
[419989395,1775587847436,-2543.12,0.00027397,2]
[419989397,1775587847445,-500.60178956,0.00027397,2]
[419989399,1775587847455,-1010.67,0.00027397,2]
[419989400,1775587847465,-4784.23,0.00027397,2]
[419989402,1775587847475,-500.0,0.00027397,2]
[419989404,1775587847484,-500.0,0.00027397,2]
[419989406,1775587847494,-500.0,0.00027397,2]
[419989408,1775587847504,-500.0,0.00027397,2]
[419989410,1775587847513,-593.53066907,0.00027397,2]
[419989412,1775587847523,-500.0,0.00027397,2]
[419989414,1775587847533,-500.0,0.00027397,2]
[419989416,1775587847543,-500.0,0.00027397,2]
[419989418,1775587847552,-500.0,0.00027397,2]
[419989420,1775587847562,-500.0,0.00027397,2]
[419989422,1775587847573,-500.0,0.00027397,2]
[419989424,1775587847583,-684.49,0.00027397,2]
[419989426,1775587847592,-1763.51,0.00027397,2]
[419989428,1775587847602,-500.0,0.00027397,2]
[419989430,1775587847612,-500.0,0.00027397,2]
[419989432,1775587847621,-500.0,0.00027397,2]
[419989434,1775587847631,-1856.69,0.00027397,2]
[419989435,1775587847641,-500.0,0.00027397,2]
[419989436,1775587847650,-500.0,0.00027397,2]
[419989437,1775587847660,-811.05,0.00027397,2]
[419989438,1775587847670,-1931.67,0.00027397,2]
[419989439,1775587847680,-2449.7,0.00027397,2]
[419989440,1775587847690,-4447.69,0.00027397,2]
[419989441,1775587847700,-500.0,0.00027397,2]
[419989442,1775587847710,-500.0,0.00027397,2]
[419989443,1775587847720,-1679.72,0.00027397,2]
[419989444,1775587847730,-1105.35,0.00027397,2]
[419989445,1775587847740,-500.0,0.00027397,2]
[419989446,1775587847751,-500.0,0.00027397,2]
[419989447,1775587847762,-500.0,0.00027397,2]
[419989448,1775587847773,-500.0,0.00027397,2]
[419989449,1775587847783,-829.88,0.00027397,2]
[419989450,1775587847793,-500.0,0.00027397,2]
[419989451,1775587847803,-572.29990643,0.00027397,2]
[419989452,1775587847813,-500.0,0.00027397,2]
[419989453,1775587847822,-500.0,0.00027397,2]
[419989454,1775587847833,-500.0,0.00027397,2]
[419989455,1775587847843,-500.0,0.00027397,2]
[419989456,1775587847853,-500.0,0.00027397,2]
[419989457,1775587847864,-500.0,0.00027397,2]
[419989458,1775587847874,-500.0,0.00027397,2]
[419989459,1775587847883,-500.0,0.00027397,2]
[419989460,1775587847893,-500.0,0.00027397,2]
[419989461,1775587847903,-500.0,0.00027397,2]
[419989462,1775587847912,-500.0,0.00027397,2]
[419989463,1775587847922,-639.35,0.00027397,2]
[419989464,1775587847931,-500.0,0.00027397,2]
[419989465,1775587847940,-500.0,0.00027397,2]
[419989466,1775587847950,-500.0,0.00027397,2]
[419989468,1775587847961,-500.0,0.00027397,2]
[419989470,1775587847972,-1942.43,0.00027397,2]
[419989472,1775587847981,-500.0,0.00027397,2]
[419989474,1775587847991,-694.95,0.00027397,2]
[419989476,1775587848001,-500.0,0.00027397,2]
[419989478,1775587848011,-1800.38,0.00027397,2]
[419989480,1775587848021,-500.0,0.00027397,2]
[419989482,1775587848031,-500.0,0.00027397,2]
[419989484,1775587848040,-500.0,0.00027397,2]
[419989486,1775587848050,-938.7,0.00027397,2]
[419989488,1775587848059,-500.0,0.00027397,2]
[419989490,1775587848069,-1159.84,0.00027397,2]
[419989492,1775587848080,-500.0,0.00027397,2]
[419989494,1775587848090,-3882.64,0.00027397,2]
[419989496,1775587848100,-500.0,0.00027397,2]
[419989498,1775587848110,-500.0,0.00027397,2]
[419989500,1775587848121,-500.0,0.00027397,2]
[419989501,1775587848131,-500.0,0.00027397,2]
[419989504,1775587848142,-571.41,0.00027397,2]
[419989505,1775587848152,-500.0,0.00027397,2]
[419989507,1775587848162,-500.0,0.00027397,2]
[419989509,1775587848172,-705.97,0.00027397,2]
[419989511,1775587848182,-1088.64,0.00027397,2]
[419989513,1775587848192,-576.3183906,0.00027397,2]
[419989515,1775587848202,-520.44,0.00027397,2]
[419989517,1775587848211,-500.0,0.00027397,2]
[419989519,1775587848221,-1624.14,0.00027397,2]
[419989521,1775587848232,-500.0,0.00027397,2]
[419989523,1775587848242,-500.0,0.00027397,2]
[419989525,1775587848252,-1226.18,0.00027397,2]
[419989527,1775587848262,-660.92,0.00027397,2]
[419989529,1775587848272,-500.0,0.00027397,2]
[419989531,1775587848282,-500.0,0.00027397,2]
[419989533,1775587848293,-162.87627839,0.00027397,2]
[419989535,1775587848306,-2820.31,0.00027397,2]
[419989537,1775587848316,-5841.91,0.00027397,2]
[419989539,1775587848327,-500.0,0.00027397,2]
[419989541,1775587848336,-500.0,0.00027397,2]
[419989543,1775587848346,-501.65762258,0.00027397,2]
[419989545,1775587848356,-500.0,0.00027397,2]
[419989547,1775587848367,-500.0,0.00027397,2]
[419989549,1775587848376,-500.0,0.00027397,2]
[419989550,1775587848386,-500.0,0.00027397,2]
[419989552,1775587848395,-678.78,0.00027397,2]
[419989554,1775587848405,-503.37,0.00027397,2]
[419989556,1775587848414,-500.0,0.00027397,2]
[419989558,1775587848424,-500.0,0.00027397,2]
[419989560,1775587848433,-500.0,0.00027397,2]
[419989562,1775587848443,-500.0,0.00027397,2]
[419989564,1775587848452,-868.26,0.00027397,2]
[419989566,1775587848462,-254.50802454,0.00027397,2]
[419989567,1775587848471,-500.0,0.00027397,2]
[419989569,1775587848480,-500.0,0.00027397,2]
[419989571,1775587848489,-1647.06,0.00027397,2]
[419989573,1775587848499,-500.0,0.00027397,2]
[419989575,1775587848508,-500.0,0.00027397,2]
[419989577,1775587848518,-500.0,0.00027397,2]
[419989579,1775587848527,-338.03219456,0.00027397,2]
[419989581,1775587848537,-500.0,0.00027397,2]
[419989583,1775587848547,-151.184621,0.00027397,2]
[419989585,1775587848557,-151.184621,0.00027397,2]
[419989587,1775587848567,-151.184621,0.00027397,2]
[419989589,1775587848576,-229.30532473,0.00027397,2]
[419989591,1775587848586,-151.184621,0.00027397,2]
[419989593,1775587848595,-151.184621,0.00027397,2]
[419989595,1775587848605,-151.184621,0.00027397,2]
[419989597,1775587848615,-151.184621,0.00027397,2]
[419989599,1775587848625,-151.184621,0.00027397,2]
[419989601,1775587848634,-151.184621,0.00027397,2]
[419989603,1775587848644,-151.184621,0.00027397,2]
[419989605,1775587848654,-151.184621,0.00027397,2]
[419989607,1775587848664,-151.184621,0.00027397,2]
[419989609,1775587848674,-993.57,0.00027397,2]
[419989611,1775587848684,-151.184621,0.00027397,2]
[419989613,1775587848694,-500.0,0.00027397,2]
[419989615,1775587848704,-151.184621,0.00027397,2]
[419989617,1775587848714,-151.184621,0.00027397,2]
[419989619,1775587848724,-151.184621,0.00027397,2]
[419989621,1775587848734,-151.184621,0.00027397,2]
[419989623,1775587848745,-151.184621,0.00027397,2]
[419989625,1775587848755,-500.0,0.00027397,2]
[419989627,1775587848766,-151.184621,0.00027397,2]
[419989629,1775587848776,-151.184621,0.00027397,2]
[419989631,1775587848787,-151.184621,0.00027397,2]
[419989633,1775587848797,-151.184621,0.00027397,2]
[419989635,1775587848807,-151.184621,0.00027397,2]
[419989637,1775587848817,-151.184621,0.00027397,2]
[419989639,1775587848827,-1211.85,0.00027397,2]
[419989641,1775587848837,-500.0,0.00027397,2]
[419989643,1775587848847,-151.184621,0.00027397,2]
[419989645,1775587848857,-500.0,0.00027397,2]
[419989647,1775587848868,-151.184621,0.00027397,2]
[419989649,1775587848877,-699.28,0.00027397,2]
[419989651,1775587848887,-151.184621,0.00027397,2]
[419989653,1775587848898,-767.43,0.00027397,2]
[419989655,1775587848909,-151.184621,0.00027397,2]
[419989657,1775587848919,-151.184621,0.00027397,2]
[419989659,1775587848928,-151.184621,0.00027397,2]
[419989661,1775587848938,-500.0,0.00027397,2]
[419989663,1775587848948,-151.184621,0.00027397,2]
[419989665,1775587848958,-151.184621,0.00027397,2]
[419989667,1775587848968,-500.0,0.00027397,2]
[419989669,1775587848977,-151.184621,0.00027397,2]
[419989671,1775587848986,-151.184621,0.00027397,2]
[419989673,1775587848997,-151.184621,0.00027397,2]
[419989675,1775587849007,-151.184621,0.00027397,2]
[419989677,1775587849017,-151.184621,0.00027397,2]
[419989679,1775587849027,-151.184621,0.00027397,2]
[419989681,1775587849037,-562.58,0.00027397,2]
[419989683,1775587849047,-151.184621,0.00027397,2]
[419989685,1775587849057,-545.93,0.00027397,2]
[419989687,1775587849067,-151.184621,0.00027397,2]
[419989702,1775587849209,-151.184621,0.00027397,2]
[419989704,1775587849220,-151.184621,0.00027397,2]
[419989706,1775587849231,-151.184621,0.00027397,2]
[419989708,1775587849242,-5428.01,0.00027397,2]